fUSD/lending_fUSD_20240213
["ID","MTS","AMOUNT","RATE_DAILY","PERIOD"]
[313931162,1707835848231,-905.64,0.00031305,2]
[313931164,1707835848241,-896.63,0.00031305,2]
[313931165,1707835848250,-631.56,0.00031305,2]
[313931166,1707835848259,-635.8,0.00031305,2]
[313931167,1707835848268,-500.0,0.00031305,2]
[313931168,1707835848277,-1000.0,0.000315,2]
[313931169,1707835848285,-500.0,0.00031506,2]
[313931170,1707835848295,-669.91,0.00031506,2]
[313931171,1707835848303,-500.0,0.00031506,2]
[313931172,1707835848312,-500.0,0.00031506,2]
[313931173,1707835848321,-500.0,0.00031506,2]
[313931174,1707835848330,-500.0,0.00031506,2]
[313931175,1707835848339,-500.0,0.00031506,2]
[313931176,1707835848348,-500.0,0.00031506,2]
[313931177,1707835848357,-572.93,0.00031506,2]
[313931178,1707835848365,-500.0,0.00031506,2]
[313931179,1707835848375,-1023.05,0.00031506,2]
[313931180,1707835848384,-1651.56,0.00031506,2]
[313931181,1707835848393,-797.24,0.00031506,2]
[313931182,1707835848402,-500.0,0.00031506,2]
[313931183,1707835848411,-500.0,0.00031506,2]
[313931184,1707835848420,-532.12,0.00031506,2]
[313931185,1707835848433,-318.34,0.00031506,2]
[313931186,1707835848442,-500.0,0.00031506,2]
[313931187,1707835848450,-618.51,0.00031506,2]
[313931188,1707835848460,-500.0,0.00031579,2]
[313931189,1707835848470,-905.64,0.00031579,2]
[313931190,1707835848479,-896.63,0.00031579,2]
[313931191,1707835848489,-635.8,0.00031579,2]
[313931192,1707835848501,-315.48,0.00031579,2]
[313931193,1707835848510,-167.25,0.00031644,2]
[313931194,1707835848520,-180.0,0.00031644,2]
[313931195,1707835848529,-481.38,0.00031755,2]
[313931196,1707835848538,-161.11860434,0.0003178,3]
[313931197,1707835848548,-334.4,0.0003178,2]
[313931198,1707835848557,-669.91,0.0003178,2]
[313931199,1707835848567,-500.0,0.0003178,2]
[313931200,1707835848576,-494.3,0.0003178,2]
[313931201,1707835848585,-500.0,0.0003178,2]
[313931202,1707835848595,-500.0,0.0003178,2]
[313931203,1707835848605,-500.0,0.0003178,2]
[313931204,1707835848614,-500.0,0.0003178,2]
[313931205,1707835848623,-572.93,0.0003178,2]
[313931206,1707835848632,-500.0,0.0003178,2]
[313931207,1707835848641,-1023.05,0.0003178,2]
[313931208,1707835848651,-1651.56,0.0003178,2]
[313931209,1707835848662,-797.24,0.0003178,2]
[313931210,1707835848671,-500.0,0.0003178,2]
[313931211,1707835848685,-500.0,0.0003178,2]
[313931212,1707835848694,-500.0,0.0003178,2]
[313931213,1707835848705,-618.51,0.0003178,2]
[313931214,1707835848714,-500.0,0.00031799,2]
[313931215,1707835848724,-107882.11644,0.000318,3]
[313931216,1707835848733,-500.0,0.00031853,2]
[313931217,1707835848743,-905.64,0.00031853,2]
[313931218,1707835848753,-896.63,0.00031853,2]
[313931219,1707835848763,-635.8,0.00031853,2]
[313931220,1707835848772,-151.0,0.00031871,7]
[313931221,1707835848781,-2226.0,0.000319,4]
[313931222,1707835848790,-155.0,0.000319,2]
[313931223,1707835848800,-500.0,0.000319,11]
[313931224,1707835848809,-500.0,0.0003198,120]
[313931225,1707835848819,-50000.0,0.00032,2]
[313931226,1707835848828,-13160.34354298,0.00032,4]
[313931227,1707835848837,-860.26390546,0.00032007,2]
[313931228,1707835848846,-669.91,0.00032054,2]
[313931229,1707835848856,-500.0,0.00032054,2]
[313931230,1707835848865,-500.0,0.00032054,2]
[313931231,1707835848874,-500.0,0.00032054,2]
[313931232,1707835848884,-500.0,0.00032054,2]
[313931233,1707835848893,-500.0,0.00032054,2]
[313931234,1707835848902,-572.93,0.00032054,2]
[313931235,1707835848911,-578.66,0.00032054,2]
[313931236,1707835848920,-1023.05,0.00032054,2]
[313931237,1707835848932,-1651.56,0.00032054,2]
[313931238,1707835848941,-797.24,0.00032054,2]
[313931239,1707835848950,-255.56,0.00032054,2]
[313931240,1707835848960,-500.0,0.00032054,2]
[313931241,1707835848969,-500.0,0.00032054,2]
[313931242,1707835848978,-488.0,0.00032127,2]
[313931243,1707835848988,-905.64,0.00032127,2]
[313931244,1707835848997,-896.63,0.00032127,2]
[313931245,1707835849007,-635.8,0.00032127,2]
[313931246,1707835849017,-207.4519588,0.00032292,2]
[313931247,1707835849026,-669.91,0.00032328,2]
[313931248,1707835849036,-500.0,0.00032328,2]
[313931249,1707835849046,-500.0,0.00032328,2]
[313931250,1707835849056,-500.0,0.00032328,2]
[313931251,1707835849065,-500.0,0.00032328,2]
[313931252,1707835849075,-547.24,0.00032328,2]
[313931253,1707835849085,-572.93,0.00032328,2]
[313931254,1707835849095,-1023.05,0.00032328,2]
[313931255,1707835849105,-1651.56,0.00032328,2]
[313931256,1707835849115,-797.24,0.00032328,2]
[313931257,1707835849126,-500.0,0.00032328,2]
[313931258,1707835849137,-365.58770089,0.00032328,2]
[313931259,1707835849146,-905.64,0.00032401,2]
[313931260,1707835849155,-896.63,0.00032401,2]
[313931261,1707835849164,-635.8,0.00032401,2]
[313931262,1707835849173,-151.0,0.00032522,4]
[313931263,1707835849185,-6917.22346554,0.00032545,14]
[313931264,1707835849194,-2987.67257103,0.00032545,6]
[313931265,1707835849204,-496.38960324,0.00032548,4]
[313931266,1707835849213,-6374.36098086,0.0003255,2]
[313931267,1707835849223,-152.73797402,0.00032551,2]
[313931268,1707835849233,-152.0,0.00032586,3]
[313931269,1707835849243,-669.91,0.00032602,2]
[313931270,1707835849253,-504.05,0.00032602,2]
[313931271,1707835849263,-516.67527243,0.00032602,2]
[313931272,1707835849272,-500.0,0.00032602,2]
[313931273,1707835849282,-500.0,0.00032602,2]
[313931274,1707835849292,-572.93,0.00032602,2]
[313931275,1707835849301,-1023.05,0.00032602,2]
[313931276,1707835849311,-1651.56,0.00032602,2]
[313931277,1707835849320,-797.24,0.00032602,2]
[313931278,1707835849331,-500.0,0.00032602,2]
[313931279,1707835849340,-905.64,0.00032675,2]
[313931280,1707835849351,-896.63,0.00032675,2]
[313931281,1707835849360,-635.8,0.00032675,2]
[313931282,1707835849370,-1221.503449,0.000327,2]
[313931283,1707835849378,-153.41,0.000327,2]
[313931284,1707835849388,-153.41,0.000327,2]
[313931285,1707835849397,-153.41,0.000327,2]
[313931286,1707835849405,-153.41,0.000327,2]
[313931287,1707835849415,-1237.6782432,0.00032719,2]
[313931288,1707835849428,-213.0,0.00032737,16]
[313931289,1707835849438,-820.50413762,0.0003278,2]
[313931290,1707835849447,-1006.87553758,0.0003278,2]
[313931291,1707835849457,-4762.47454028,0.0003278,2]
[313931292,1707835849470,-2106.17319352,0.0003278,2]
[313931293,1707835849479,-500.0,0.00032799,2]
[313931294,1707835849489,-3000.0,0.000328,13]
[313931295,1707835849499,-800.0,0.000328,11]
[313931296,1707835849509,-3000.0,0.0003281,13]
[313931297,1707835849519,-5475.95891,0.0003282,13]
[313931298,1707835849529,-1000.0,0.00032876,7]
[313931299,1707835849538,-631.41,0.00032876,2]
[313931300,1707835849548,-631.41,0.00032876,2]
[313931301,1707835849557,-631.41,0.00032876,2]
[313931302,1707835849566,-631.41,0.00032876,2]
[313931303,1707835849576,-631.41,0.00032876,2]
[313931304,1707835849587,-631.41,0.00032876,2]
[313931305,1707835849597,-631.41,0.00032876,2]
[313931306,1707835849607,-631.41,0.00032876,2]
[313931307,1707835849616,-631.41,0.00032876,2]
[313931308,1707835849625,-631.41,0.00032876,2]
[313931309,1707835849635,-631.41,0.00032876,2]
[313931310,1707835849644,-631.41,0.00032876,2]
[313931311,1707835849653,-631.41,0.00032876,2]
[313931312,1707835849664,-631.41,0.00032876,2]
[313931313,1707835849673,-631.41,0.00032876,2]
[313931314,1707835849687,-631.41,0.00032876,2]
[313931315,1707835849696,-669.91,0.00032876,2]
[313931316,1707835849706,-500.0,0.00032876,2]
[313931317,1707835849715,-500.0,0.00032876,2]
[313931318,1707835849725,-572.93,0.00032876,2]
[313931319,1707835849735,-1023.05,0.00032876,2]
[313931320,1707835849744,-1651.56,0.00032876,2]
[313931321,1707835849754,-797.24,0.00032876,2]
[313931322,1707835849766,-500.0,0.00032876,2]
[313931323,1707835849775,-150.0,0.00032877,2]
[313931324,1707835849785,-229.14,0.00032877,2]
[313931325,1707835849794,-1592.09246113,0.00032877,2]
[313931326,1707835849804,-1821.67035105,0.00032877,4]
[313931327,1707835849813,-908.89017,0.00032877,2]
[313931328,1707835849822,-178.75326338,0.00032877,4]
[313931329,1707835849831,-589.55763454,0.00032878,2]
[313931330,1707835849841,-14522.03843694,0.00032878,2]
[313931331,1707835849850,-301.10506276,0.00032879,4]
[313931332,1707835849860,-436.72937996,0.00032879,4]
[313931333,1707835849870,-946.80415467,0.00032879,4]
[313931334,1707835849879,-47737.40974772,0.00032879,2]
[313931335,1707835849889,-150.01,0.00032879,2]
[313931336,1707835849898,-3314.82130757,0.00032879,2]
[313931337,1707835849907,-5000.0,0.00032879,2]
[313931338,1707835849916,-1000.0,0.00032879,2]
[313931339,1707835849929,-1000.0,0.00032879,3]
[313931340,1707835849938,-1000.0,0.00032879,3]
[313931341,1707835849947,-194.5,0.00032879,3]
[313931342,1707835849956,-677626.38629331,0.0003288,2]
[313931343,1707835850176,-430.87765201,0.00029315,2]
[313931344,1707835850241,-500.0,0.00028767,2]
[313931345,1707835850252,-69.12234799,0.00029315,2]
[313931346,1707835850262,-618.51,0.00032054,2]
[313931347,1707835850273,-1270.36765201,0.0003288,2]
[313931348,1707835850285,-15022.1347868,0.0003288,2]
[313931349,1707835850298,-12723.19149374,0.0003288,2]
[313931350,1707835850319,-500.0,0.00029589,2]
[313931351,1707835850328,-98488.60853521,0.0003288,2]
[313931352,1707835850569,-219.33,0.00028557,10]
[313931353,1707835850579,-500.0,0.00029863,2]
[313931354,1707835850590,-500.0,0.00030136,2]
[313931355,1707835850599,-500.0,0.0003041,2]
[313931356,1707835850609,-420.12,0.00030684,2]
[313931357,1707835850618,-618.51,0.00032328,2]
[313931358,1707835850627,-618.51,0.00032602,2]
[313931359,1707835850637,-618.51,0.00032876,2]
[313931360,1707835850646,-15883.33486046,0.0003288,2]
[313931361,1707835850658,-2501.75482878,0.0003288,2]
[313931362,1707835850670,-3454.35438775,0.0003288,2]
[313931363,1707835850684,-589.55763454,0.0003288,2]
[313931364,1707835850701,-528.29735762,0.0003288,2]
[313931365,1707835850712,-1978.90521346,0.0003288,2]
[313931366,1707835850812,-1908.41654741,0.00028927,2]
[313931367,1707835850821,-72208.0300844,0.0003288,2]
[313931368,1707835850877,-6802.97342706,0.00030863,2]
[313931369,1707835850889,-2034.0,0.00030863,2]
[313931370,1707835850901,-14320.29511712,0.00030863,2]
[313931371,1707835850913,-4738.91688799,0.00030863,2]
[313931372,1707835850922,-25174.22489963,0.0003288,2]
[313931373,1707835850938,-2938.3542014,0.0003288,2]
[313931374,1707835850950,-2517.20341454,0.0003288,2]
[313931375,1707835850962,-23165.50311695,0.0003288,2]
[313931376,1707835850992,-266.85754341,0.0003288,2]
[313931377,1707835851005,-924.69181333,0.0003288,2]
[313931378,1707835851017,-600.66605365,0.0003288,2]
[313931379,1707835851029,-833.79910387,0.0003288,2]
[313931380,1707835851086,-437.46658462,0.00028556,2]
[313931381,1707835851098,-94.22591572,0.00028556,2]
[313931382,1707835851109,-945.92214649,0.00028766,2]
[313931383,1707835851118,-207.05193679,0.0003288,2]
[313931384,1707835851131,-4875.857564,0.0003288,2]
[313931385,1707835851147,-9787.3776,0.00028766,2]
[313931386,1707835851159,-5676.9442588,0.00028766,2]
[313931387,1707835851168,-34312.12890778,0.0003288,2]
[313931388,1707835851185,-4608.67713029,0.0003288,2]
[313931389,1707835851198,-279.44002297,0.0003288,2]
[313931390,1707835851209,-296.9414077,0.0003288,2]
[313931391,1707835851221,-378.41523539,0.0003288,2]
[313931392,1707835851234,-4366.97406637,0.0003288,2]
[313931393,1707835851246,-2521.33154629,0.0003288,2]
[313931394,1707835851258,-2683.01266004,0.0003288,2]
[313931395,1707835851271,-8383.44103302,0.0003288,2]
[313931396,1707835851283,-467.43016111,0.0003288,2]
[313931397,1707835851294,-7464.02625058,0.0003288,2]
[313931398,1707835851306,-2999.99999999,0.0003288,2]
[313931399,1707835851318,-3741.2619811,0.0003288,2]
[313931400,1707835851330,-9824.44949887,0.0003288,2]
[313931401,1707835851351,-1908.41654741,0.00029107,2]
[313931402,1707835851361,-1525.85450079,0.0003288,2]
[313931403,1707835851373,-21289.68192894,0.0003288,2]
[313931404,1707835851385,-348.6427116,0.0003288,2]
[313931405,1707835851398,-480.65261314,0.0003288,2]
[313931406,1707835851410,-1237.54800105,0.0003288,2]
[313931407,1707835851421,-534.0,0.0003288,2]
[313931408,1707835851438,-746.13382894,0.0003288,2]
[313931409,1707835851449,-491.62526748,0.0003288,2]
[313931410,1707835851461,-512.2726247,0.0003288,2]
[313931411,1707835851473,-275094.40426721,0.0003288,2]
[313931412,1707835851484,-1060.38409947,0.0003288,4]
[313931413,1707835851493,-787.88820057,0.0003288,6]
[313931414,1707835851503,-500.0,0.0003288,5]
[313931415,1707835851512,-4953.32082951,0.0003288,2]
[313931416,1707835851521,-695.09084172,0.0003288,2]
[313931417,1707835851530,-1587.65931431,0.0003288,4]
[313931418,1707835851540,-5647.71096775,0.0003288,2]
[313931419,1707835851549,-3446.86561742,0.0003288,5]
[313931420,1707835851559,-2000.0,0.0003288,2]
[313931421,1707835851568,-200.0,0.0003288,2]
[313931422,1707835851578,-200.0,0.0003288,2]
[313931423,1707835851587,-3000.0,0.0003288,2]
[313931424,1707835851596,-161.35,0.000329,7]
[313931425,1707835851605,-5000.0,0.000329,2]
[313931426,1707835851614,-500.0,0.000329,2]
[313931427,1707835851623,-300.0,0.000329,2]
[313931428,1707835851632,-500.0,0.000329,2]
[313931429,1707835851641,-200.0,0.000329,2]
[313931430,1707835851651,-5500.0,0.000329,2]
[313931431,1707835851660,-1500.0,0.000329,2]
[313931432,1707835851670,-4188.76563956,0.000329,2]
[313931433,1707835851682,-1100.0,0.000329,12]
[313931434,1707835851691,-1000.0,0.000329,2]
[313931435,1707835851701,-905.64,0.00032949,2]
[313931436,1707835851711,-896.63,0.00032949,2]
[313931437,1707835851720,-635.8,0.00032949,2]
[313931438,1707835851730,-661.13696104,0.0003297,2]
[313931439,1707835851740,-500.0,0.0003298,120]
[313931440,1707835851749,-50000.0,0.00033,3]
[313931441,1707835851760,-608.62748676,0.00033,4]
[313931442,1707835851769,-300.4741662,0.00033,4]
[313931443,1707835851779,-2000.0,0.00033,5]
[313931444,1707835851789,-203.2362796,0.00033,2]
[313931445,1707835851798,-167.0,0.00033,2]
[313931446,1707835851808,-550.0,0.00033,3]
[313931447,1707835851817,-157.0,0.00033,2]
[313931448,1707835851826,-1377.515,0.00033013,2]
[313931449,1707835851836,-1859.0,0.00033013,2]
[313931450,1707835851844,-841.0,0.00033013,2]
[313931451,1707835851853,-535.966,0.00033013,2]
[313931452,1707835851862,-952.0,0.00033013,2]
[313931453,1707835851871,-1947.0,0.00033013,2]
[313931454,1707835851881,-707.0,0.00033013,2]
[313931455,1707835851890,-1253.0,0.00033013,2]
[313931456,1707835851900,-1237.615,0.00033013,2]
[313931457,1707835851909,-328.654,0.00033013,2]
[313931458,1707835851919,-456.97,0.00033013,2]
[313931459,1707835851930,-848.0,0.00033013,2]
[313931460,1707835851939,-1003.0,0.00033013,2]
[313931461,1707835851948,-237.0,0.00033013,2]
[313931462,1707835851959,-434.462,0.00033013,2]
[313931463,1707835851968,-1138.0,0.00033013,2]
[313931464,1707835851977,-343.0,0.00033013,2]
[313931465,1707835851987,-150.0,0.00033013,2]
[313931466,1707835851996,-453.0,0.00033013,2]
[313931467,1707835852006,-19832.0,0.00033013,2]
[313931468,1707835852016,-2924.0,0.00033013,2]
[313931469,1707835852025,-150.17,0.00033013,2]
[313931470,1707835852036,-150.0,0.00033013,2]
[313931471,1707835852045,-4206.0,0.00033013,2]
[313931472,1707835852056,-150.0,0.00033013,2]
[313931473,1707835852066,-150.0,0.00033013,2]
[313931474,1707835852076,-2287.0,0.00033013,2]
[313931475,1707835852086,-8156.0,0.00033013,2]
[313931476,1707835852096,-5622.0,0.00033013,2]
[313931477,1707835852106,-42526.0,0.00033013,2]
[313931478,1707835852116,-1129.007,0.00033013,2]
[313931479,1707835852127,-150.0,0.00033013,2]
[313931480,1707835852137,-817.37,0.00033015,2]
[313931481,1707835852148,-631.41,0.0003315,2]
[313931482,1707835852157,-669.91,0.0003315,2]
[313931483,1707835852166,-500.0,0.0003315,2]
[313931484,1707835852179,-575.8,0.0003315,2]
[313931485,1707835852187,-572.93,0.0003315,2]
[313931486,1707835852198,-1023.05,0.0003315,2]
[313931487,1707835852208,-1651.56,0.0003315,2]
[313931488,1707835852218,-797.24,0.0003315,2]
[313931489,1707835852227,-500.0,0.0003315,2]
[313931490,1707835852238,-618.51,0.0003315,2]
[313931491,1707835852248,-157.0,0.00033151,2]
[313931492,1707835852258,-5000.0,0.00033153,3]
[313931493,1707835852268,-1000.0,0.00033153,3]
[313931494,1707835852277,-200.89139386,0.00033164,2]
[313931495,1707835852287,-151.0,0.00033185,2]
[313931496,1707835852297,-1237.6782432,0.00033207,2]
[313931497,1707835852308,-2000.0,0.00033209,2]
[313931498,1707835852319,-200.0,0.00033209,2]
[313931499,1707835852328,-905.64,0.00033223,2]
[313931500,1707835852338,-896.63,0.00033223,2]
[313931501,1707835852348,-635.8,0.00033223,2]
[313931502,1707835852358,-1063.71392425,0.00033342,2]
[313931503,1707835852367,-150.653861,0.000334,2]
[313931504,1707835852378,-631.41,0.00033424,2]
[313931505,1707835852387,-669.91,0.00033424,2]
[313931506,1707835852397,-500.0,0.00033424,2]
[313931507,1707835852406,-572.93,0.00033424,2]
[313931508,1707835852415,-1023.05,0.00033424,2]
[313931509,1707835852426,-1651.56,0.00033424,2]
[313931510,1707835852436,-797.24,0.00033424,2]
[313931511,1707835852445,-500.0,0.00033424,2]
[313931512,1707835852456,-618.51,0.00033424,2]
[313931513,1707835852466,-5000.0,0.00033427,4]
[313931514,1707835852476,-1000.0,0.00033427,4]
[313931515,1707835852486,-207.4519588,0.00033488,2]
[313931516,1707835852496,-905.64,0.00033497,2]
[313931517,1707835852505,-896.63,0.00033497,2]
[313931518,1707835852514,-635.8,0.00033497,2]
[313931519,1707835852524,-395.9846366,0.000335,2]
[313931520,1707835852533,-947.38,0.000335,2]
[313931521,1707835852542,-947.38,0.000335,2]
[313931522,1707835852552,-947.38,0.000335,2]
[313931523,1707835852561,-947.38,0.000335,2]
[313931524,1707835852570,-947.38,0.000335,2]
[313931525,1707835852579,-947.38,0.000335,2]
[313931526,1707835852588,-947.38,0.000335,2]
[313931527,1707835852598,-947.38,0.000335,2]
[313931528,1707835852607,-947.38,0.000335,2]
[313931529,1707835852616,-947.38,0.000335,2]
[313931530,1707835852625,-947.38,0.000335,2]
[313931531,1707835852634,-947.38,0.000335,2]
[313931532,1707835852643,-947.38,0.000335,2]
[313931533,1707835852652,-947.38,0.000335,2]
[313931534,1707835852666,-947.38,0.000335,2]
[313931535,1707835852675,-947.38,0.000335,2]
[313931536,1707835852686,-947.38,0.000335,2]
[313931537,1707835852695,-947.38,0.000335,2]
[313931538,1707835852705,-947.38,0.000335,2]
[313931539,1707835852715,-947.38,0.000335,2]
[313931540,1707835852724,-182.63,0.00033511,2]
[313931541,1707835852733,-2000.0,0.00033541,2]
[313931542,1707835852742,-200.0,0.00033541,2]
[313931543,1707835852752,-509.0,0.00033639,5]
[313931544,1707835852764,-631.41,0.00033698,2]
[313931545,1707835852774,-669.91,0.00033698,2]
[313931546,1707835852785,-500.0,0.00033698,2]
[313931547,1707835852794,-572.93,0.00033698,2]
[313931548,1707835852803,-1023.05,0.00033698,2]
[313931549,1707835852813,-1651.56,0.00033698,2]
[313931550,1707835852823,-797.24,0.00033698,2]
[313931551,1707835852832,-589.11,0.00033698,2]
[313931552,1707835852842,-618.51,0.00033698,2]
[313931553,1707835852851,-5000.0,0.00033701,5]
[313931554,1707835852861,-1000.0,0.00033701,5]
[313931555,1707835852871,-729.51346822,0.0003374,4]
[313931556,1707835852881,-500.0,0.0003374,4]
[313931557,1707835852890,-891.76573719,0.0003374,4]
[313931558,1707835852900,-410.45346606,0.00033741,2]
[313931559,1707835852910,-150.0,0.00033742,2]
[313931560,1707835853031,-500.0,0.0003377,10]
[313931561,1707835853042,-905.64,0.00033771,2]
[313931562,1707835853054,-896.63,0.00033771,2]
[313931563,1707835853064,-635.8,0.00033771,2]
[313931564,1707835853074,-2987.67257103,0.00033813,6]
[313931565,1707835853084,-150.0,0.00033843,7]
[313931566,1707835853094,-5405.22,0.00033844,30]
[313931567,1707835853104,-2000.0,0.00033876,2]
[313931568,1707835853114,-200.0,0.00033876,2]
[313931569,1707835853124,-800.0,0.00033895,2]
[313931570,1707835853134,-200.0,0.00033895,10]
[313931571,1707835853145,-500.0,0.00033895,10]
[313931572,1707835853154,-152.18208277,0.000339,2]
[313931573,1707835853165,-152.18208271,0.000339,2]
[313931574,1707835853174,-152.18208271,0.000339,2]
[313931575,1707835853188,-631.41,0.00033972,2]
[313931576,1707835853198,-669.91,0.00033972,2]
[313931577,1707835853207,-500.0,0.00033972,2]
[313931578,1707835853217,-572.93,0.00033972,2]
[313931579,1707835853227,-1023.05,0.00033972,2]
[313931580,1707835853238,-1651.56,0.00033972,2]
[313931581,1707835853247,-797.24,0.00033972,2]
[313931582,1707835853257,-618.51,0.00033972,2]
[313931583,1707835853266,-5000.0,0.00033975,6]
[313931584,1707835853277,-50000.0,0.00034,4]
[313931585,1707835853287,-767.6781702,0.00034,4]
[313931586,1707835853296,-2169.94036913,0.00034,4]
[313931587,1707835853306,-155.0,0.00034,4]
[313931588,1707835853316,-1100.0,0.00034,7]
[313931589,1707835853326,-481.38,0.00034019,2]
[313931590,1707835853335,-905.64,0.00034045,2]
[313931591,1707835853345,-896.63,0.00034045,2]
[313931592,1707835853355,-635.8,0.00034045,2]
[313931593,1707835853365,-2500.0,0.00034111,10]
[313931594,1707835853374,-152.0,0.00034195,4]
[313931595,1707835853383,-1000.0,0.000342,2]
[313931596,1707835853393,-614.02989964,0.00034215,2]
[313931597,1707835853402,-200.0,0.00034215,2]
[313931598,1707835853412,-631.41,0.00034246,2]
[313931599,1707835853422,-669.91,0.00034246,2]
[313931600,1707835853434,-500.0,0.00034246,2]
[313931601,1707835853444,-572.93,0.00034246,2]
[313931602,1707835853453,-1023.05,0.00034246,2]
[313931603,1707835853463,-1651.56,0.00034246,2]
[313931604,1707835853472,-797.24,0.00034246,2]
[313931605,1707835853481,-618.51,0.00034246,2]
[313931606,1707835853491,-5000.0,0.00034249,7]
[313931607,1707835853501,-860.26390546,0.000343,2]
[313931608,1707835853510,-1000.0,0.000343,2]
[313931609,1707835853520,-905.64,0.00034319,2]
[313931610,1707835853530,-896.63,0.00034319,2]
[313931611,1707835853539,-635.8,0.00034319,2]
[313931612,1707835853549,-152.18208271,0.00034362,2]
[313931613,1707835853558,-750.0,0.000344,2]
[313931614,1707835853567,-1139.0,0.00034412,2]
[313931615,1707835853577,-265.57798221,0.00034455,23]
[313931616,1707835853586,-153.41,0.000345,2]
[313931617,1707835853595,-153.41,0.000345,2]
[313931618,1707835853605,-153.41,0.000345,2]
[313931619,1707835853614,-153.41,0.000345,2]
[313931620,1707835853623,-310.049675,0.0003452,2]
[313931621,1707835853632,-384.154244,0.0003452,2]
[313931622,1707835853641,-395.692449,0.0003452,2]
[313931623,1707835853651,-631.41,0.0003452,2]
[313931624,1707835853662,-669.91,0.0003452,2]
[313931625,1707835853671,-235.16,0.0003452,2]
[313931626,1707835853683,-572.93,0.0003452,2]
[313931627,1707835853693,-1023.05,0.0003452,2]
[313931628,1707835853702,-1651.56,0.0003452,2]
[313931629,1707835853712,-797.24,0.0003452,2]
[313931630,1707835853721,-618.51,0.0003452,2]
[313931631,1707835853730,-150.0,0.0003452,7]
[313931632,1707835853741,-150.0,0.0003452,7]
[313931633,1707835853750,-150.00000001,0.0003452,7]
[313931634,1707835853762,-150.0,0.0003452,7]
[313931635,1707835853771,-150.0,0.0003452,7]
[313931636,1707835853781,-150.0,0.0003452,7]
[313931637,1707835853790,-150.0,0.0003452,7]
[313931638,1707835853800,-150.0,0.0003452,7]
[313931639,1707835853810,-150.0,0.0003452,7]
[313931640,1707835853819,-150.0,0.0003452,7]
[313931641,1707835853828,-150.0,0.0003452,7]
[313931642,1707835853837,-150.0,0.0003452,7]
[313931643,1707835853847,-156.34354522,0.0003452,7]
[313931644,1707835853856,-5164.23,0.00034521,2]
[313931645,1707835853865,-167.0,0.00034521,2]
[313931646,1707835853875,-157.0,0.00034521,2]
[313931647,1707835853884,-5000.0,0.00034523,8]
[313931648,1707835853893,-150.0,0.00034548,10]
[313931649,1707835853902,-905.64,0.00034593,2]
[313931650,1707835853911,-896.63,0.00034593,2]
[313931651,1707835853922,-635.8,0.00034593,2]
[313931652,1707835853935,-947.38,0.000346,2]
[313931653,1707835853944,-947.38,0.000346,2]
[313931654,1707835853954,-947.38,0.000346,2]
[313931655,1707835853963,-947.38,0.000346,2]
[313931656,1707835853973,-947.38,0.000346,2]
[313931657,1707835853982,-947.38,0.000346,2]
[313931658,1707835853993,-947.38,0.000346,2]
[313931659,1707835854002,-947.38,0.000346,2]
[313931660,1707835854012,-947.38,0.000346,2]
[313931661,1707835854021,-947.38,0.000346,2]
[313931662,1707835854031,-947.38,0.000346,2]